{"text_format":"1","workbook":"xlsx","n_sheets":2,"sheets":["SOLL_IST_ER-Erfassung","Budget"],"not_rendered":{"charts":0,"images":0,"macros":1,"external_links":0,"defined_names":1,"comments":0,"pivot_tables":0},"unopened":[],"bounds":{"document_bytes":16777216,"sheet_cells":100000,"rows_first":2000,"rows_last":500,"rows_between":2000,"halvings":0,"cell_chars":16384,"cell_head_chars":4096},"cells_cut":0,"cells_raw":0,"read":"whole","date_system":"1900"}

{"sheet":"SOLL_IST_ER-Erfassung","index":0,"n_rows":7,"n_cols":19,"rows_kept":7,"cut":false,"hidden":false,"merged":[[2,5,2,16]]}
["IT Kosten",null,{"$f":"Budget!B2","v":2025},null,null,null,null,null,"Neueinträge und Budgetänderungen  NUR in Tabelle Budget! "]
[null,null,null,null,null,"Einträg Spalten C und D sind aus Tabelle Budget übernommen, bitte NICHT   ändern!"]
[null,null,null,null,null,"Hier sind nur die ER einzutragen! Einträge Jän - Dez sind änderbar, bitte bei Bedarf bitte auf \"0\" setzen!"]
["Grundbezeichnung","Investition\nAufwendung","ausführliche Bezeichnung","Jahresbudget genehmigt","Budgeterwartung","Jän","Feb","Mär","Apr","Mai","Jun","Jul","Aug","Sep","Okt","Nov","Dez","2026","2027"]
[{"$f":"IF(Budget!A6<>0,Budget!A6,\"\")","v":"Betrieb"},null,{"$f":"IF(Budget!B6<>0,Budget!B6,\"\")","v":"Test"},{"$f":"VLOOKUP(t_SOLL[[#This Row],[ausführliche Bezeichnung]],Budget!B:D,2,)","v":27500},{"$f":"SUM(t_SOLL[[#This Row],[Jän]:[Dez]])","v":27500.000000000004},{"$f":"VLOOKUP(t_SOLL[[#This Row],[ausführliche Bezeichnung]],Budget!$B:$P,4,)","v":2291.6666666666665},{"$f":"VLOOKUP(t_SOLL[[#This Row],[ausführliche Bezeichnung]],Budget!$B:$P,5,)","v":2291.6666666666665},{"$f":"VLOOKUP(t_SOLL[[#This Row],[ausführliche Bezeichnung]],Budget!$B:$P,6,)","v":2291.6666666666665},{"$f":"VLOOKUP(t_SOLL[[#This Row],[ausführliche Bezeichnung]],Budget!$B:$P,7,)","v":2291.6666666666665},{"$f":"VLOOKUP(t_SOLL[[#This Row],[ausführliche Bezeichnung]],Budget!$B:$P,8,)","v":2291.6666666666665},{"$f":"VLOOKUP(t_SOLL[[#This Row],[ausführliche Bezeichnung]],Budget!$B:$P,9,)","v":2291.6666666666665},{"$f":"VLOOKUP(t_SOLL[[#This Row],[ausführliche Bezeichnung]],Budget!$B:$P,10,)","v":2291.6666666666665},{"$f":"VLOOKUP(t_SOLL[[#This Row],[ausführliche Bezeichnung]],Budget!$B:$P,11,)","v":2291.6666666666665},{"$f":"VLOOKUP(t_SOLL[[#This Row],[ausführliche Bezeichnung]],Budget!$B:$P,12,)","v":2291.6666666666665},{"$f":"VLOOKUP(t_SOLL[[#This Row],[ausführliche Bezeichnung]],Budget!$B:$P,13,)","v":2291.6666666666665},{"$f":"VLOOKUP(t_SOLL[[#This Row],[ausführliche Bezeichnung]],Budget!$B:$P,14,)","v":2291.6666666666665},{"$f":"VLOOKUP(t_SOLL[[#This Row],[ausführliche Bezeichnung]],Budget!$B:$P,15,)","v":2291.6666666666665}]
[{"$f":"IF(Budget!A7<>0,Budget!A7,\"\")","v":"Kanzlei"},"a",{"$f":"IF(Budget!B7<>0,Budget!B7,\"\")","v":"Papier"},{"$f":"VLOOKUP(t_SOLL[[#This Row],[ausführliche Bezeichnung]],Budget!B:D,2,)","v":90000},{"$f":"SUM(t_SOLL[[#This Row],[Jän]:[Dez]])","v":83400},{"$f":"500+400","v":900},{"$f":"VLOOKUP(t_SOLL[[#This Row],[Jahresbudget genehmigt]],Budget!C:Q,5,)","v":7500},{"$f":"VLOOKUP(t_SOLL[[#This Row],[ausführliche Bezeichnung]],Budget!$B:$P,6,)","v":7500},{"$f":"VLOOKUP(t_SOLL[[#This Row],[ausführliche Bezeichnung]],Budget!$B:$P,7,)","v":7500},{"$f":"VLOOKUP(t_SOLL[[#This Row],[ausführliche Bezeichnung]],Budget!$B:$P,8,)","v":7500},{"$f":"VLOOKUP(t_SOLL[[#This Row],[ausführliche Bezeichnung]],Budget!$B:$P,9,)","v":7500},{"$f":"VLOOKUP(t_SOLL[[#This Row],[ausführliche Bezeichnung]],Budget!$B:$P,10,)","v":7500},{"$f":"VLOOKUP(t_SOLL[[#This Row],[ausführliche Bezeichnung]],Budget!$B:$P,11,)","v":7500},{"$f":"VLOOKUP(t_SOLL[[#This Row],[ausführliche Bezeichnung]],Budget!$B:$P,12,)","v":7500},{"$f":"VLOOKUP(t_SOLL[[#This Row],[ausführliche Bezeichnung]],Budget!$B:$P,13,)","v":7500},{"$f":"VLOOKUP(t_SOLL[[#This Row],[ausführliche Bezeichnung]],Budget!$B:$P,14,)","v":7500},{"$f":"VLOOKUP(t_SOLL[[#This Row],[ausführliche Bezeichnung]],Budget!$B:$P,15,)","v":7500}]
[{"$f":"IF(Budget!A8<>0,Budget!A8,\"\")","v":"OP"},"i",{"$f":"IF(Budget!B8<>0,Budget!B8,\"\")","v":"Diverse"},{"$f":"VLOOKUP(t_SOLL[[#This Row],[ausführliche Bezeichnung]],Budget!B:D,2,)","v":25000},{"$f":"SUM(t_SOLL[[#This Row],[Jän]:[Dez]])","v":25300},{"$f":"200+100","v":300},{"$f":"VLOOKUP(t_SOLL[[#This Row],[Jahresbudget genehmigt]],Budget!C:Q,5,)","v":0},{"$f":"VLOOKUP(t_SOLL[[#This Row],[ausführliche Bezeichnung]],Budget!$B:$P,6,)","v":0},{"$f":"VLOOKUP(t_SOLL[[#This Row],[ausführliche Bezeichnung]],Budget!$B:$P,7,)","v":0},{"$f":"VLOOKUP(t_SOLL[[#This Row],[ausführliche Bezeichnung]],Budget!$B:$P,8,)","v":25000},{"$f":"VLOOKUP(t_SOLL[[#This Row],[ausführliche Bezeichnung]],Budget!$B:$P,9,)","v":0},{"$f":"VLOOKUP(t_SOLL[[#This Row],[ausführliche Bezeichnung]],Budget!$B:$P,10,)","v":0},{"$f":"VLOOKUP(t_SOLL[[#This Row],[ausführliche Bezeichnung]],Budget!$B:$P,11,)","v":0},{"$f":"VLOOKUP(t_SOLL[[#This Row],[ausführliche Bezeichnung]],Budget!$B:$P,12,)","v":0},{"$f":"VLOOKUP(t_SOLL[[#This Row],[ausführliche Bezeichnung]],Budget!$B:$P,13,)","v":0},{"$f":"VLOOKUP(t_SOLL[[#This Row],[ausführliche Bezeichnung]],Budget!$B:$P,14,)","v":0},{"$f":"VLOOKUP(t_SOLL[[#This Row],[ausführliche Bezeichnung]],Budget!$B:$P,15,)","v":0}]

{"sheet":"Budget","index":1,"n_rows":8,"n_cols":18,"rows_kept":8,"cut":false,"hidden":false,"merged":[[0,4,0,11],[3,4,3,15]]}
["Budgetplanung",null,null,null,"Neueinträge nur in dieser Tabelle bitte \nButton Aktualiseren in Tabelle SOLL_IST_Ausw_Piv nicht vergessen"]
["xxx",2025,null,null,"Button Aktualisieren in Tabellenblatt \"SOLL_IST_Ausw_Piv\" nicht vergessen!"]
[null,null,null,null,"Manuelle Änderung"]
[null,null,"Bei Bedarf ändern",null,"Budget und Monate sind manuell zu befüllen, bei Bedarf ändern"]
["Grundbezeichnung","ausführliche Bezeichnung","Jahresbudget -bewilligt\nmanuell zu befüllen\nnicht ändern","Budget Erwartung \nJän - Dez","Jän","Feb","Mär","Apr","Mai","Jun","Jul","Aug","Sep","Okt","Nov","Dez",{"$f":"B2+1","v":2026},"2027"]
["Betrieb","Test",27500,{"$f":"SUM(t_Budget[[#This Row],[Jän]:[Dez]])","v":27500.000000000004},{"$f":"27500/12","v":2291.6666666666665},{"$f":"27500/12","v":2291.6666666666665},2291.6666666666665,2291.6666666666665,2291.6666666666665,2291.6666666666665,2291.6666666666665,2291.6666666666665,2291.6666666666665,2291.6666666666665,2291.6666666666665,2291.6666666666665]
["Kanzlei","Papier",90000,{"$f":"SUM(t_Budget[[#This Row],[Jän]:[Dez]])","v":90000},{"$f":"90000/12","v":7500},{"$f":"90000/12","v":7500},7500,7500,7500,7500,7500,7500,7500,7500,7500,7500]
["OP","Diverse",25000,{"$f":"SUM(t_Budget[[#This Row],[Jän]:[Dez]])","v":25000},null,null,null,null,25000]